fUSD/lending_fUSD_20250607
["ID","MTS","AMOUNT","RATE_DAILY","PERIOD"]
[364851051,1749275445367,-706.88,0.00027397,5]
[364851052,1749275445377,-480.0,0.00027397,5]
[364851053,1749275445387,-480.0,0.00027397,5]
[364851054,1749275445396,-385.46913452,0.00027397,5]
[364851055,1749275445406,-491.56906453,0.00027397,5]
[364851056,1749275445501,-519.12495234,0.00027397,5]
[364851057,1749275445512,-480.0,0.00027397,5]
[364851058,1749275445522,-480.0,0.00027397,5]
[364851059,1749275445532,-480.0,0.00027397,5]
[364851060,1749275445541,-493.03550905,0.00027397,5]
[364851061,1749275445550,-509.42927945,0.00027397,5]
[364851062,1749275445560,-480.0,0.00027397,5]
[364851063,1749275445569,-355.82049876,0.00027397,5]
[364851064,1749275445579,-800.86,0.00027397,5]
[364851065,1749275445589,-480.0,0.00027397,5]
[364851066,1749275445598,-607.83,0.00027397,5]
[364851067,1749275445608,-754.4,0.00027397,5]
[364851068,1749275445617,-480.0,0.00027397,5]
[364851069,1749275445627,-480.0,0.00027397,5]
[364851070,1749275445636,-480.0,0.00027397,5]
[364851071,1749275445646,-1444.88,0.00027397,5]
[364851072,1749275445655,-480.0,0.00027397,5]
[364851073,1749275445666,-1068.78,0.00027397,5]
[364851074,1749275445675,-480.0,0.00027397,5]
[364851075,1749275445685,-500.0,0.00027397,5]
[364851076,1749275445695,-500.0,0.00027397,5]
[364851077,1749275445705,-480.0,0.00027397,5]
[364851078,1749275445715,-500.0,0.00027397,5]
[364851079,1749275445724,-500.0,0.00027397,5]
[364851080,1749275445734,-500.0,0.00027397,5]
[364851081,1749275445744,-500.0,0.00027397,5]
[364851082,1749275445753,-500.0,0.00027397,5]
[364851083,1749275445763,-500.0,0.00027397,5]
[364851084,1749275445772,-500.0,0.00027397,5]
[364851085,1749275445782,-500.0,0.00027397,5]
[364851086,1749275445791,-500.0,0.00027397,5]
[364851087,1749275445800,-500.0,0.00027397,5]
[364851089,1749275445810,-500.0,0.00027397,5]
[364851090,1749275445819,-722.25,0.00027397,5]
[364851091,1749275445829,-500.0,0.00027397,5]
[364851092,1749275445838,-379.5525958,0.00027397,5]
[364851093,1749275445848,-480.0,0.00027397,5]
[364851094,1749275445857,-480.0,0.00027397,5]
[364851095,1749275445867,-503.26544929,0.00027397,5]
[364851096,1749275445876,-488.9018027,0.00027397,5]
[364851097,1749275445885,-1932.61,0.00027397,5]
[364851098,1749275445896,-658.72,0.00027397,5]
[364851099,1749275445907,-480.0,0.00027397,5]
[364851100,1749275445918,-483.40386196,0.00027397,5]
[364851101,1749275445928,-421.28359058,0.00027397,5]
[364851102,1749275445937,-480.0,0.00027397,5]
[364851103,1749275445947,-480.0,0.00027397,5]
[364851104,1749275445956,-814.9,0.00027397,5]
[364851105,1749275445967,-540.21917309,0.00027397,5]
[364851106,1749275445977,-470.76019747,0.00027397,5]
[364851107,1749275445989,-480.0,0.00027397,5]
[364851108,1749275445999,-943.75,0.00027397,5]
[364851109,1749275446009,-480.0,0.00027397,5]
[364851110,1749275446020,-427.50474168,0.00027397,5]
[364851111,1749275446032,-480.0,0.00027397,5]
[364851112,1749275446044,-428.45265322,0.00027397,5]
[364851113,1749275446053,-480.0,0.00027397,5]
[364851114,1749275446064,-480.0,0.00027397,5]
[364851115,1749275446074,-480.0,0.00027397,5]
[364851116,1749275446084,-482.90756565,0.00027397,5]
[364851117,1749275446094,-480.0,0.00027397,5]
[364851118,1749275446103,-480.0,0.00027397,5]
[364851119,1749275446113,-480.0,0.00027397,5]
[364851120,1749275446123,-480.0,0.00027397,5]
[364851121,1749275446132,-563.87939294,0.00027397,5]
[364851122,1749275446145,-480.0,0.00027397,5]
[364851123,1749275446155,-576.73,0.00027397,5]
[364851124,1749275446166,-748.49,0.00027397,5]
[364851125,1749275446176,-1442.29,0.00027397,5]
[364851126,1749275446187,-364.48152111,0.00027397,5]
[364851127,1749275446197,-480.0,0.00027397,5]
[364851128,1749275446206,-480.0,0.00027397,5]
[364851129,1749275446216,-386.78537358,0.00027397,5]
[364851130,1749275446226,-424.48767831,0.00027397,5]
[364851131,1749275446236,-483.27311345,0.00027397,5]
[364851132,1749275446247,-623.80910127,0.00027397,5]
[364851133,1749275446257,-853.62,0.00027397,5]
[364851134,1749275446271,-480.0,0.00027397,5]
[364851135,1749275446283,-480.0,0.00027397,5]
[364851136,1749275446292,-480.0,0.00027397,5]
[364851137,1749275446304,-480.0,0.00027397,5]
[364851138,1749275446314,-480.0,0.00027397,5]
[364851139,1749275446325,-949.58,0.00027397,5]
[364851140,1749275446335,-480.0,0.00027397,5]
[364851141,1749275446346,-842.89,0.00027397,5]
[364851142,1749275446355,-480.0,0.00027397,5]
[364851143,1749275446365,-1000.0,0.00027397,5]
[364851144,1749275446374,-487.22014676,0.00027397,5]
[364851145,1749275446384,-891.66,0.00027397,5]
[364851146,1749275446393,-483.61602611,0.00027397,5]
[364851147,1749275446403,-480.0,0.00027397,5]
[364851148,1749275446413,-480.0,0.00027397,5]
[364851149,1749275446422,-480.0,0.00027397,5]
[364851150,1749275446432,-480.0,0.00027397,5]
[364851151,1749275446442,-480.0,0.00027397,5]
[364851152,1749275446452,-491.01134746,0.00027397,5]
[364851153,1749275446461,-480.0,0.00027397,5]
[364851154,1749275446471,-916.35,0.00027397,5]
[364851155,1749275446481,-264.12610767,0.00027397,5]
[364851156,1749275446492,-480.0,0.00027397,5]
[364851157,1749275446502,-374.25215662,0.00027397,5]
[364851158,1749275446511,-480.0,0.00027397,5]
[364851159,1749275446521,-480.0,0.00027397,5]
[364851160,1749275446531,-480.0,0.00027397,5]
[364851161,1749275446541,-480.0,0.00027397,5]
[364851162,1749275446551,-480.0,0.00027397,5]
[364851163,1749275446561,-923.96,0.00027397,5]
[364851164,1749275446571,-480.0,0.00027397,5]
[364851165,1749275446582,-1066.78,0.00027397,5]
[364851166,1749275446592,-431.69480208,0.00027397,5]
[364851167,1749275446603,-765.06,0.00027397,5]
[364851168,1749275446613,-489.832948,0.00027397,5]
[364851169,1749275446622,-480.0,0.00027397,5]
[364851171,1749275446632,-480.0,0.00027397,5]
[364851173,1749275446642,-480.0,0.00027397,5]
[364851175,1749275446651,-589.04,0.00027397,5]
[364851177,1749275446660,-943.26,0.00027397,5]
[364851179,1749275446670,-480.0,0.00027397,5]
[364851181,1749275446679,-489.3188391,0.00027397,5]
[364851183,1749275446688,-480.0,0.00027397,5]
[364851185,1749275446698,-871.81,0.00027397,5]
[364851187,1749275446707,-538.89237035,0.00027397,5]
[364851189,1749275446716,-480.0,0.00027397,5]
[364851191,1749275446725,-480.0,0.00027397,5]
[364851193,1749275446735,-424.10423953,0.00027397,5]
[364851195,1749275446744,-480.0,0.00027397,5]
[364851196,1749275446753,-480.0,0.00027397,5]
[364851198,1749275446763,-1182.54,0.00027397,5]
[364851200,1749275446772,-503.40460421,0.00027397,5]
[364851202,1749275446782,-480.0,0.00027397,5]
[364851204,1749275446791,-482.29380278,0.00027397,5]
[364851206,1749275446801,-480.0,0.00027397,5]
[364851208,1749275446810,-1648.23,0.00027397,5]
[364851210,1749275446819,-1744.26,0.00027397,5]
[364851212,1749275446829,-499.44479943,0.00027397,5]
[364851214,1749275446839,-542.89405349,0.00027397,5]
[364851216,1749275446848,-484.06509942,0.00027397,5]
[364851218,1749275446858,-480.0,0.00027397,5]
[364851220,1749275446868,-2996.31,0.00027397,5]
[364851222,1749275446877,-480.0,0.00027397,5]
[364851224,1749275446887,-594.24,0.00027397,5]
[364851226,1749275446897,-1656.96,0.00027397,5]
[364851228,1749275446906,-480.0,0.00027397,5]
[364851230,1749275446915,-480.0,0.00027397,5]
[364851232,1749275446925,-581.99,0.00027397,5]
[364851234,1749275446934,-480.0,0.00027397,5]
[364851236,1749275446944,-480.0,0.00027397,5]
[364851238,1749275446953,-480.0,0.00027397,5]
[364851240,1749275446964,-4307.55,0.00027397,5]
[364851242,1749275446973,-486.27741131,0.00027397,5]
[364851244,1749275446983,-629.18,0.00027397,5]
[364851245,1749275446992,-593.81,0.00027397,5]
[364851246,1749275447002,-480.0,0.00027397,5]
[364851247,1749275447011,-547.00824585,0.00027397,5]
[364851248,1749275447020,-798.07,0.00027397,5]
[364851249,1749275447030,-594.43,0.00027397,5]
[364851250,1749275447039,-480.0,0.00027397,5]
[364851251,1749275447049,-480.0,0.00027397,5]
[364851252,1749275447059,-831.81,0.00027397,5]
[364851253,1749275447069,-5383.27,0.00027397,5]
[364851254,1749275447078,-480.0,0.00027397,5]
[364851255,1749275447088,-480.0,0.00027397,5]
[364851256,1749275447098,-480.0,0.00027397,5]
[364851257,1749275447107,-2090.28,0.00027397,5]
[364851258,1749275447117,-1267.21,0.00027397,5]
[364851259,1749275447127,-480.0,0.00027397,5]
[364851260,1749275447136,-10955.06,0.00027397,5]
[364851261,1749275447149,-488.36627572,0.00027397,5]
[364851262,1749275447158,-458.5351599,0.00027397,5]
[364851263,1749275447167,-329.21166625,0.00027397,5]
[364851264,1749275447177,-959.52,0.00027397,5]
[364851265,1749275447190,-480.0,0.00027397,5]
[364851266,1749275447199,-5511.22,0.00027397,5]
[364851267,1749275447208,-494.67842674,0.00027397,5]
[364851268,1749275447218,-7087.11,0.00027397,5]
[364851269,1749275447229,-491.96750139,0.00027397,5]
[364851270,1749275447239,-480.0,0.00027397,5]
[364851271,1749275447249,-480.0,0.00027397,5]
[364851272,1749275447259,-2433.15,0.00027397,5]
[364851273,1749275447269,-480.0,0.00027397,5]
[364851274,1749275447278,-480.0,0.00027397,5]
[364851275,1749275447287,-520.6087155,0.00027397,5]
[364851276,1749275447299,-800.24,0.00027397,5]
[364851277,1749275447310,-480.0,0.00027397,5]
[364851278,1749275447320,-480.0,0.00027397,5]
[364851279,1749275447330,-480.0,0.00027397,5]
[364851280,1749275447339,-512.76820691,0.00027397,5]
[364851281,1749275447349,-515.92049263,0.00027397,5]
[364851282,1749275447358,-1027.33,0.00027397,5]
[364851283,1749275447368,-1086.55,0.00027397,5]
[364851284,1749275447378,-480.0,0.00027397,5]
[364851285,1749275447387,-1813.57,0.00027397,5]
[364851286,1749275447397,-1367.55,0.00027397,5]
[364851287,1749275447406,-490.35252368,0.00027397,5]
[364851288,1749275447415,-480.0,0.00027397,5]
[364851289,1749275447424,-1078.29,0.00027397,5]
[364851290,1749275447434,-480.0,0.00027397,5]
[364851291,1749275447443,-7852.96,0.00027397,5]
[364851292,1749275447452,-2982.07,0.00027397,5]
[364851293,1749275447462,-1926.65,0.00027397,5]
[364851294,1749275447471,-480.0,0.00027397,5]
[364851295,1749275447480,-1720.22,0.00027397,5]
[364851296,1749275447490,-480.0,0.00027397,5]
[364851297,1749275447500,-502.85533557,0.00027397,5]
[364851298,1749275447511,-1287.03,0.00027397,5]
[364851299,1749275447521,-596.48,0.00027397,5]
[364851300,1749275447530,-647.73,0.00027397,5]
[364851301,1749275447540,-3698.26,0.00027397,5]
[364851302,1749275447550,-480.0,0.00027397,5]
[364851303,1749275447560,-561.51,0.00027397,5]
[364851304,1749275447570,-480.0,0.00027397,5]
[364851305,1749275447579,-480.0,0.00027397,5]
[364851306,1749275447589,-480.0,0.00027397,5]
[364851307,1749275447598,-441.59751452,0.00027397,5]
[364851308,1749275447608,-1325.93,0.00027397,5]
[364851309,1749275447617,-3481.74,0.00027397,5]
[364851310,1749275447627,-1912.4,0.00027397,2]
[364851311,1749275447636,-1909.93,0.00027397,5]
[364851312,1749275447646,-1205.05,0.00027397,5]
[364851313,1749275447655,-1000.0,0.00027397,5]
[364851314,1749275447665,-480.0,0.00027397,5]
[364851315,1749275447675,-480.0,0.00027397,5]
[364851316,1749275447684,-569.38,0.00027397,5]
[364851317,1749275447694,-480.0,0.00027397,5]
[364851318,1749275447703,-480.0,0.00027397,5]
[364851319,1749275447713,-480.0,0.00027397,5]
[364851320,1749275447722,-480.0,0.00027397,5]
[364851321,1749275447731,-480.0,0.00027397,5]
[364851322,1749275447741,-769.38,0.00027397,5]
[364851323,1749275447751,-216.41842662,0.00027397,2]
[364851324,1749275447760,-63032.49,0.00027397,5]
[364851325,1749275447769,-846.16,0.00027397,5]
[364851326,1749275447779,-480.0,0.00027397,5]
[364851327,1749275447788,-426.04828878,0.00027397,5]
[364851328,1749275447797,-480.0,0.00027397,5]
[364851329,1749275447806,-471.42011093,0.00027397,5]
[364851330,1749275447816,-2534.32,0.00027397,5]
[364851331,1749275447825,-480.0,0.00027397,5]
[364851332,1749275447834,-480.0,0.00027397,5]
[364851333,1749275447844,-480.0,0.00027397,5]
[364851334,1749275447853,-829.68,0.00027397,5]
[364851335,1749275447862,-829.68,0.00027397,5]
[364851336,1749275447871,-829.68,0.00027397,5]
[364851337,1749275447881,-3160.19,0.00027397,5]
[364851338,1749275447890,-829.68,0.00027397,5]
[364851339,1749275447899,-829.68,0.00027397,5]
[364851340,1749275447909,-829.68,0.00027397,5]
[364851341,1749275447918,-755.58,0.00027397,5]
[364851342,1749275447927,-829.68,0.00027397,5]
[364851343,1749275447937,-496.53576103,0.00027397,5]
[364851344,1749275447945,-480.0,0.00027397,5]
[364851345,1749275447956,-1597.05,0.00027397,5]
[364851346,1749275447965,-498.42145917,0.00027397,5]
[364851347,1749275447974,-5855.72,0.00027397,5]
[364851348,1749275447984,-480.0,0.00027397,5]
[364851349,1749275447993,-11381.49,0.00027397,5]
[364851350,1749275448002,-480.0,0.00027397,5]
[364851351,1749275448012,-1244.3,0.00027397,5]
[364851352,1749275448022,-480.0,0.00027397,5]
[364851353,1749275448032,-480.0,0.00027397,5]
[364851354,1749275448041,-1738.26,0.00027397,5]
[364851355,1749275448051,-480.0,0.00027397,2]
[364851356,1749275448060,-480.0,0.00027397,5]
[364851357,1749275448069,-3704.48,0.00027397,5]
[364851358,1749275448079,-480.0,0.00027397,5]
[364851359,1749275448089,-480.0,0.00027397,5]
[364851360,1749275448098,-1045.76,0.00027397,5]
[364851361,1749275448108,-735.86,0.00027397,5]
[364851362,1749275448117,-480.0,0.00027397,5]
[364851363,1749275448126,-631.49,0.00027397,5]
[364851364,1749275448136,-1516.04,0.00027397,5]
[364851365,1749275448150,-631.49,0.00027397,5]
[364851366,1749275448160,-480.0,0.00027397,5]
[364851367,1749275448169,-631.49,0.00027397,5]
[364851368,1749275448179,-631.49,0.00027397,5]
[364851369,1749275448188,-1047.58,0.00027397,5]
[364851370,1749275448198,-631.49,0.00027397,5]
[364851371,1749275448207,-631.49,0.00027397,5]
[364851372,1749275448218,-1602.25,0.00027397,5]
[364851373,1749275448228,-631.49,0.00027397,5]
[364851374,1749275448238,-631.49,0.00027397,5]
[364851375,1749275448248,-631.49,0.00027397,5]
[364851376,1749275448258,-631.49,0.00027397,5]
[364851377,1749275448267,-631.49,0.00027397,5]
[364851378,1749275448277,-631.49,0.00027397,5]
[364851379,1749275448286,-631.49,0.00027397,5]
[364851380,1749275448295,-961.5,0.00027397,5]
[364851381,1749275448305,-631.49,0.00027397,5]
[364851382,1749275448314,-749.45,0.00027397,5]
[364851383,1749275448324,-631.49,0.00027397,5]
[364851384,1749275448333,-480.0,0.00027397,5]
[364851385,1749275448342,-631.49,0.00027397,5]
[364851386,1749275448352,-631.49,0.00027397,5]
[364851387,1749275448362,-480.0,0.00027397,5]
[364851388,1749275448373,-631.49,0.00027397,5]
[364851389,1749275448383,-631.49,0.00027397,5]
[364851390,1749275448393,-631.49,0.00027397,5]
[364851391,1749275448403,-631.49,0.00027397,5]
[364851392,1749275448414,-631.49,0.00027397,5]
[364851393,1749275448424,-480.0,0.00027397,5]
[364851394,1749275448433,-631.49,0.00027397,5]
[364851395,1749275448444,-631.61522954,0.00027397,5]
[364851396,1749275448454,-714.3,0.00027397,5]
[364851397,1749275448463,-1392.55,0.00027397,5]
[364851398,1749275448474,-352.61474615,0.00027397,5]
[364851399,1749275448483,-1271.75,0.00027397,5]
[364851400,1749275448498,-2908.68,0.00027397,5]
[364851401,1749275448509,-400.0,0.00027397,5]
[364851402,1749275448519,-480.0,0.00027397,5]
[364851403,1749275448529,-466.89576298,0.00027397,5]
[364851404,1749275448538,-480.0,0.00027397,5]
[364851405,1749275448548,-742.56,0.00027397,5]
[364851406,1749275448558,-480.0,0.00027397,5]
[364851407,1749275448568,-480.0,0.00027397,5]
[364851408,1749275448577,-571.8,0.00027397,5]
[364851409,1749275448588,-1714.36,0.00027397,5]
[364851410,1749275448599,-932.26,0.00027397,5]
[364851411,1749275448609,-5571.7,0.00027397,5]
[364851412,1749275448618,-480.0,0.00027397,5]
[364851413,1749275448628,-480.0,0.00027397,5]
[364851414,1749275448637,-871.56,0.00027397,5]
[364851415,1749275448648,-480.0,0.00027397,5]
[364851416,1749275448657,-1450.59,0.00027397,5]
[364851417,1749275448667,-480.0,0.00027397,5]
[364851418,1749275448676,-166.21486647,0.00027397,5]
[364851419,1749275448897,-489.97644543,0.00027397,5]
[364851420,1749275448908,-1122.69,0.00027397,5]
[364851421,1749275448919,-1529.93,0.00027397,5]
[364851422,1749275448930,-480.0,0.00027397,5]
[364851423,1749275448942,-480.0,0.00027397,5]
[364851424,1749275448953,-5767.87,0.00027397,5]
[364851425,1749275448963,-2513.87,0.00027397,5]
[364851426,1749275448974,-480.0,0.00027397,5]
[364851427,1749275448986,-480.0,0.00027397,5]
[364851428,1749275448999,-480.0,0.00027397,5]
[364851429,1749275449010,-747.9,0.00027397,5]
[364851430,1749275449023,-1569.25,0.00027397,5]
[364851431,1749275449034,-480.0,0.00027397,5]
[364851432,1749275449044,-4023.49,0.00027397,5]
[364851433,1749275449055,-480.0,0.00027397,5]
[364851434,1749275449066,-480.0,0.00027397,5]
[364851435,1749275449078,-1345.91,0.00027397,5]
[364851436,1749275449088,-4322.98,0.00027397,5]
[364851437,1749275449099,-480.0,0.00027397,5]
[364851438,1749275449110,-494.08,0.00027397,5]
[364851439,1749275449121,-819.83,0.00027397,5]
[364851440,1749275449131,-480.0,0.00027397,5]
[364851441,1749275449143,-480.0,0.00027397,5]
[364851442,1749275449155,-687.89,0.00027397,5]
[364851443,1749275449166,-480.0,0.00027397,5]
[364851444,1749275449180,-480.0,0.00027397,5]
[364851445,1749275449190,-480.0,0.00027397,5]
[364851446,1749275449200,-3258.93,0.00027397,5]
[364851447,1749275449209,-480.0,0.00027397,5]
[364851448,1749275449220,-480.0,0.00027397,5]
[364851449,1749275449230,-428.43001528,0.00027397,5]
[364851450,1749275449239,-480.0,0.00027397,5]
[364851451,1749275449251,-480.0,0.00027397,5]
[364851452,1749275449261,-998.9,0.00027397,5]
[364851453,1749275449271,-480.0,0.00027397,5]
[364851454,1749275449280,-435.19553468,0.00027397,5]
[364851455,1749275449290,-480.0,0.00027397,5]
[364851456,1749275449299,-500.0,0.00027397,5]
[364851457,1749275449309,-500.0,0.00027397,5]
[364851458,1749275449319,-501.57789469,0.00027397,5]
[364851459,1749275449329,-183.5396126,0.00027397,5]
[364851460,1749275449339,-1521.99,0.00027397,5]
[364851461,1749275449348,-480.0,0.00027397,5]
[364851462,1749275449358,-480.0,0.00027397,5]
[364851463,1749275449368,-480.0,0.00027397,5]
[364851464,1749275449378,-480.0,0.00027397,5]
[364851465,1749275449388,-524.15897064,0.00027397,5]
[364851466,1749275449400,-482.818438,0.00027397,5]
[364851467,1749275449410,-1993.68,0.00027397,5]
[364851468,1749275449420,-276.17416622,0.00027397,5]
[364851469,1749275449430,-633.62,0.00027397,5]
[364851470,1749275449440,-3750.22,0.00027397,5]
[364851471,1749275449450,-480.0,0.00027397,5]
[364851472,1749275449459,-495.25761186,0.00027397,5]
[364851473,1749275449470,-496.88810002,0.00027397,5]
[364851474,1749275449480,-480.0,0.00027397,5]
[364851475,1749275449490,-1168.37,0.00027397,5]
[364851476,1749275449501,-812.77,0.00027397,5]
[364851477,1749275449513,-480.0,0.00027397,5]
[364851478,1749275449523,-12535.73,0.00027397,5]
[364851479,1749275449535,-480.0,0.00027397,5]
[364851480,1749275449546,-493.61106545,0.00027397,5]
[364851481,1749275449557,-513.52,0.00027397,5]
[364851482,1749275449567,-407.42693088,0.00027397,5]
[364851483,1749275449577,-480.0,0.00027397,5]
[364851484,1749275449588,-3155.81,0.00027397,5]
[364851485,1749275449598,-3155.81,0.00027397,5]
[364851486,1749275449608,-1806.88,0.00027397,5]
[364851487,1749275449618,-3155.81,0.00027397,5]
[364851488,1749275449628,-3155.81,0.00027397,5]
[364851489,1749275449638,-521.13,0.00027397,5]
[364851490,1749275449649,-3155.81,0.00027397,5]
[364851491,1749275449659,-2045.24,0.00027397,5]
[364851492,1749275449668,-3155.81,0.00027397,5]
[364851493,1749275449678,-3155.81,0.00027397,5]
[364851494,1749275449688,-480.0,0.00027397,5]
[364851495,1749275449697,-480.0,0.00027397,5]
[364851496,1749275449707,-2237.15,0.00027397,5]
[364851497,1749275449717,-480.0,0.00027397,5]
[364851498,1749275449727,-480.0,0.00027397,5]
[364851499,1749275449737,-482.93172348,0.00027397,5]
[364851500,1749275449747,-484.51,0.00027397,5]
[364851501,1749275449757,-427.63162811,0.00027397,5]
[364851502,1749275449767,-551.18949792,0.00027397,5]
[364851503,1749275449776,-1414.74,0.00027397,5]
[364851504,1749275449786,-480.0,0.00027397,5]
[364851505,1749275449796,-719.02,0.00027397,5]
[364851506,1749275449805,-480.0,0.00027397,5]
[364851507,1749275449815,-1721.85,0.00027397,5]
[364851508,1749275449825,-658.17,0.00027397,5]
[364851509,1749275449834,-1125.11,0.00027397,5]
[364851510,1749275449844,-1927.59,0.00027397,5]
[364851511,1749275449855,-776.34,0.00027397,5]
[364851512,1749275449865,-749.65,0.00027397,5]
[364851513,1749275449875,-697.95,0.00027397,5]
[364851514,1749275449886,-480.0,0.00027397,5]
[364851515,1749275449897,-480.0,0.00027397,5]
[364851516,1749275449906,-518.65,0.00027397,5]
[364851517,1749275449916,-480.0,0.00027397,5]
[364851518,1749275449926,-480.0,0.00027397,5]
[364851519,1749275449936,-2031.28,0.00027397,5]
[364851520,1749275449947,-1830.02,0.00027397,5]
[364851521,1749275449957,-509.4296095,0.00027397,5]
[364851522,1749275449967,-480.0,0.00027397,5]
[364851523,1749275449979,-565.41,0.00027397,5]
[364851524,1749275449990,-757.09,0.00027397,5]
[364851525,1749275450002,-480.0,0.00027397,5]
[364851526,1749275450011,-1739.86,0.00027397,5]
[364851527,1749275450021,-480.0,0.00027397,5]
[364851528,1749275450032,-480.0,0.00027397,5]
[364851529,1749275450044,-483.00812327,0.00027397,5]
[364851530,1749275450056,-480.0,0.00027397,2]
[364851531,1749275450066,-886.47,0.00027397,5]
[364851532,1749275450077,-10865.99,0.00027397,5]
[364851533,1749275450087,-480.0,0.00027397,5]
[364851534,1749275450099,-480.0,0.00027397,5]
[364851535,1749275450110,-644.76,0.00027397,5]
[364851536,1749275450120,-1387.38,0.00027397,5]
[364851537,1749275450130,-1102.12,0.00027397,5]
[364851538,1749275450143,-407.11136607,0.00027397,5]
[364851539,1749275450154,-480.0,0.00027397,5]
[364851540,1749275450164,-480.0,0.00027397,5]
[364851541,1749275450175,-1440.45,0.00027397,5]
[364851542,1749275450187,-480.0,0.00027397,5]
[364851543,1749275450197,-340.58643146,0.00027397,5]
[364851544,1749275450207,-642.18,0.00027397,5]
[364851545,1749275450220,-686.12,0.00027397,5]
[364851546,1749275450231,-480.0,0.00027397,5]
[364851547,1749275450244,-480.0,0.00027397,5]
[364851548,1749275450254,-480.0,0.00027397,5]
[364851549,1749275450264,-480.0,0.00027397,5]
[364851550,1749275450273,-480.0,0.00027397,5]
[364851551,1749275450283,-7442.43,0.00027397,5]
[364851552,1749275450293,-480.0,0.00027397,5]
[364851553,1749275450305,-480.0,0.00027397,5]
[364851554,1749275450315,-480.0,0.00027397,5]
[364851555,1749275450326,-480.0,0.00027397,5]
[364851556,1749275450336,-3308.39,0.00027397,5]
[364851557,1749275450347,-480.0,0.00027397,5]
[364851558,1749275450357,-646.52,0.00027397,5]
[364851559,1749275450367,-480.0,0.00027397,5]
[364851560,1749275450377,-2073.8,0.00027397,5]
[364851561,1749275450388,-480.0,0.00027397,5]
[364851562,1749275450398,-483.04,0.00027397,2]
[364851563,1749275450409,-487.17636003,0.00027397,5]
[364851564,1749275450419,-336.04612261,0.00027397,5]
[364851565,1749275450430,-480.0,0.00027397,5]
[364851566,1749275450440,-2227.22,0.00027397,5]
[364851567,1749275450450,-480.0,0.00027397,5]
[364851568,1749275450462,-16410.82,0.00027397,5]
[364851569,1749275450472,-480.0,0.00027397,5]
[364851570,1749275450482,-609.44623584,0.00027397,5]
[364851571,1749275450492,-846.38,0.00027397,5]
[364851572,1749275450503,-1668.56,0.00027397,5]
[364851573,1749275450513,-480.0,0.00027397,5]
[364851574,1749275450524,-816.17,0.00027397,5]
[364851575,1749275450534,-480.0,0.00027397,2]
[364851576,1749275450545,-3612.7,0.00027397,5]
[364851577,1749275450554,-1442.32,0.00027397,5]
[364851578,1749275450566,-480.0,0.00027397,5]
[364851579,1749275450578,-300.0,0.00027397,2]
[364851580,1749275450588,-4073.38,0.00027397,2]
[364851581,1749275450598,-150.0,0.00027397,2]
[364851582,1749275450608,-376.0,0.000274,2]
[364851583,1749275450618,-768.0,0.000274,2]
[364851584,1749275450629,-989.57508398,0.000274,2]
[364851585,1749275450640,-150.0,0.00027403,2]
[364851586,1749275450650,-150.0,0.00027412,2]
[364851587,1749275450660,-1000.0,0.00027413,2]
[364851588,1749275450669,-150.0,0.00027417,2]